Workbook

Sheet Risk
D3: Crop Practices | G3: Arthropod | I3: Index | J3: Low | N3: Med | R3: High
D4: Cultivar | E4: MA-02 | H4: Spider Mites | I4: =SM_RiskIndex -> 73 | J4: =SM_RiskIndex -> 73 | K4: =SM_RiskIndex -> 73 | L4: =SM_RiskIndex -> 73 | M4: =SM_RiskIndex -> 73 | N4: =SM_RiskIndex -> 73 | O4: =SM_RiskIndex -> 73 | P4: =SM_RiskIndex -> 73 | Q4: =SM_RiskIndex -> 73 | R4: =SM_RiskIndex -> 73 | S4: =SM_RiskIndex -> 73 | T4: =SM_RiskIndex -> 73 | U4: =SM_RiskIndex -> 73
D5: Plant Pattern | E5: <6 plts/m (90 cm twin row) | G5: Disease (Foliar) | I5: Index | J5: Low | N5: Med | R5: High
D6: Field | H6: Leaf Spot | I6: =LS_RiskIndex -> 284 | J6: =LS_RiskIndex -> 284 | K6: =LS_RiskIndex -> 284 | L6: =LS_RiskIndex -> 284 | M6: =LS_RiskIndex -> 284 | N6: =LS_RiskIndex -> 284 | O6: =LS_RiskIndex -> 284 | P6: =LS_RiskIndex -> 284 | Q6: =LS_RiskIndex -> 284 | R6: =LS_RiskIndex -> 284 | S6: =LS_RiskIndex -> 284 | T6: =LS_RiskIndex -> 284 | U6: =LS_RiskIndex -> 284
D7: Soil Smut Inoculum | E7: 1500 or greater spores/g soil | G7: Disease (Soil Borne) | I7: Index | J7: Low | N7: Med | R7: High
D8: Tillage System | E8: Reduced Tillage | H8: Sclerotinia Blight | I8: =SB_RiskIndex -> 228 | J8: =SB_RiskIndex -> 228 | K8: =SB_RiskIndex -> 228 | L8: =SB_RiskIndex -> 228 | M8: =SB_RiskIndex -> 228 | N8: =SB_RiskIndex -> 228 | O8: =SB_RiskIndex -> 228 | P8: =SB_RiskIndex -> 228 | Q8: =SB_RiskIndex -> 228 | R8: =SB_RiskIndex -> 228 | S8: =SB_RiskIndex -> 228 | T8: =SB_RiskIndex -> 228 | U8: =SB_RiskIndex -> 228
D9: Weeds and Herbicide Resistance | E9: Palmer A. (ALS resistant) | H9: Smut | I9: =SMUT_RiskIndex -> 275 | J9: =SMUT_RiskIndex -> 275 | K9: =SMUT_RiskIndex -> 275 | L9: =SMUT_RiskIndex -> 275 | M9: =SMUT_RiskIndex -> 275 | N9: =SMUT_RiskIndex -> 275 | O9: =SMUT_RiskIndex -> 275 | P9: =SMUT_RiskIndex -> 275 | Q9: =SMUT_RiskIndex -> 275 | R9: =SMUT_RiskIndex -> 275 | S9: =SMUT_RiskIndex -> 275 | T9: =SMUT_RiskIndex -> 275 | U9: =SMUT_RiskIndex -> 275
D10: Field Crop History | G10: Plant | I10: Index | J10: Low | N10: Med | R10: High
D11: Crop 1 Season Ago | E11: Soybean | H11: Weeds | I11: =WDS_RiskIndex -> 92 | J11: =WDS_RiskIndex -> 92 | K11: =WDS_RiskIndex -> 92 | L11: =WDS_RiskIndex -> 92 | M11: =WDS_RiskIndex -> 92 | N11: =WDS_RiskIndex -> 92 | O11: =WDS_RiskIndex -> 92 | P11: =WDS_RiskIndex -> 92 | Q11: =WDS_RiskIndex -> 92 | R11: =WDS_RiskIndex -> 92 | S11: =WDS_RiskIndex -> 92 | T11: =WDS_RiskIndex -> 92 | U11: =WDS_RiskIndex -> 92
D12: Crop 2 Seasons Ago | E12: Soybean
D13: Crop 3 Seasons Ago | E13: Soybean | G13: Red Dots - Change practices to eliminate. Yellow Dots - Consider adjusting practices to reduce risk. Green Dots - Risk is acceptable for selected practices.
D14: Leaf Spot Management
D15: Chlorothalonil Applications | E15: 3 Sprays
D16: Fungicide Resistance | E16: Groups 3+7+11+M
D17: Spray Schedule | E17: Calendar
D18: Pest History
D19: Leaf Spot | E19: Problem with good fungicide program
D20: Sclerotoina Blight | E20: Present
D21: Smut | E21: Problem with good fungicide program
D22: Treatments
D23: Iridium Applictions | E23: None
D24: Miticides | E24: Abamectin
D25: Weed Mgmt | E25: PRE + EPOST + MPOST
D26: Weather Pattern
D27: Period 1 Sept and Oct | E27: Moist
D28: Period 2 Nov and Dec | E28: Moist
D29: Period 3 Jan and Feb | E29: Moist
D30: Period 4 Mar and Apr | E30: Moist

Sheet Crop (hidden)
A1: Crop | B1: Peanut
A3: Planting Season | B3: Date | C3: Month | D3: Day of Month | E3: Day of Year
A4: Start | B4: 2021-10-10 | C4: =MONTH(B4) -> 10 | D4: =DAY(B4) -> 10 | E4: =B4-DATE(YEAR(B4),1,1)+1 -> 283
A5: End | B5: 2021-11-20 | C5: =MONTH(B5) -> 11 | D5: =DAY(B5) -> 20 | E5: =B5-DATE(YEAR(B5),1,1)+1 -> 324
A7: Title | B7: Argentina Peanut Risk Management Tool
A8: Subtitle
A9: Credit Lines | B9: Sergio A. Morichetti
B10: Head of Technical Development in the Agricultural Business Unit
B11: Aceitera General Deheza SA
B12: Juan Paredes and Joaquin Monguillot
B13: Agricultural Research Center-National Institute of Agricultural Technology
B14: David Jordan and Greg Buol
B15: North Carolina State University, Raleigh NC USA

Sheet Log_TPL (hidden)
A1: Field and Production Information
S2: Input Selection Lists
D3: Crop | E3: =Crop -> Peanut | S3: Tillage_Pracs | T3: Land_Plaster_Meth | U3: Land_Plaster_Type | V3: Digging_Eq | W3: Combine | X3: Moisture_Status | Y3: Control_Rating
D4: Field Area (A)
S5: Bed | T5: Banded | U5: Bagged | V5: 2 Row Digger | W5: 2 Row Pull Type Combine | X5: Dry | Y5: No Control (<5%)
D6: Soil | E6: Mapped Series | F6: % of Field | S6: Chisel | T6: Broadcast | U6: Bulk | V6: 4 Row Digger | W6: 4 Row Pull Type Combine | X6: Adequate | Y6: Poor (5% to 20%)
S7: Cultivate | T7: Other | U7: Granular | V7: 6 Row Digger | W7: 6 Row Pull Type Combine | X7: Wet | Y7: Low (20% to 50%)
S8: Disk | U8: Other | V8: Other | W8: 6 Row Self-Propelled Combine | Y8: Moderate (50% to 80%)
S9: Moldboard Plow | W9: 8 Row Self-Propelled Combine | Y9: High (80% to 90%)
S10: No Till | W10: Other | Y10: Excellent (90% to 100%)
S11: Other
S12: Rip
D13: Tillage Practice | E13: Date | F13: Equipment | S13: Rip and Bed
S14: Strip Till
D18: Lime Applications | E18: Date | F18: Rate (lbs/acre)
D19: Current Year
D20: Last Year
D22: Seed Inoculation | E22: Date | F22: Inoculant
D25: Fertilizer | E25: Date | F25: N | G25: P2O5 | H25: K2O | I25: B | J25: Cu | K25: Fe | L25: Mn | M25: Mo | N25: S | O25: Zn
F26: lbs/acre
D32: Land Plaster | E32: Date | F32: Trade Name | G32: Type | H32: Method | I32: Rate (lbs/acre)
D35: Herbicides | E35: Date | F35: Weeds | G35: Weed Size | H35: Trade Name | I35: Rate | J35: Trade Name | K35: Rate | L35: Trade Name | M35: Rate | N35: Trade Name | O35: Rate | P35: Evaluation Date | Q35: Control Rating
D36: Burndown
D37: Preplant
D38: Preemergence
D39: At Cracking
D40: First Postemergence
D41: Second Postemergence
D42: Third Postemergence
D44: Leaf Spot Program | E44: Date | F44: Severity | G44: Trade Name | H44: Rate | I44: Trade Name | J44: Rate | K44: Trade Name | L44: Rate | M44: Evaluation Date | N44: Control Rating
D58: Pest Treaments | E58: Date | F58: Severity | G58: Trade Name | H58: Rate | I58: Trade Name | J58: Rate | K58: Evaluation Date | L58: Control Rating
D59: Sclerotina Blight
D61: CBR
D63: Southern Corn Rootworm
D65: Spider Mites
D68: Insecticide Treaments | E68: Date | F68: Pest | G68: Severity | H68: Trade Name | I68: Rate | J68: Trade Name | K68: Rate | L68: Evaluation Date | M68: Control Rating
D69: In-furrow
D70: Foliar
D77: Development Dates | E77: Date
D78: Emergence
D79: First Flower
D80: First Peg
D81: Last Flower
D83: Development Moisture Status
D84: Planting to Emergence
D85: Emergence to Flowering
D86: Flowering to Pod Formation
D87: Pod Formation to Harvest
D89: Weeds at Harvest
D98: Pod Blasting Data | E98: Date | F98: White | G98: Yellow | H98: Orange | I98: Brown | J98: Black | K98: White | L98: Yellow | M98: Orange | N98: Brown | O98: Black | P98: Brown/Black
F99: Pod Count | K99: Percentage(%)
K100: =IF(SUM($F100:$J100)=0,NA(),F100/(SUM($F100:$J100))) ->  | L100: =IF(SUM($F100:$J100)=0,NA(),G100/(SUM($F100:$J100))) ->  | P100: =N100+O100 -> 
P101: =N101+O101 -> 
D105: Digging | E105: Date | F105: Equipment
D108: Harvest | E108: Date | F108: Equipment
D111: Yield Goal (lbs/acre)
D112: Yield (lbs/acre)
D113: Selling Price ($/lb)
D115: Grading Results | E115: Grams (gr) | F115: Percentage (%)
D116: Foreign Material Sample
D117: Foreign Material | F117: =IFERROR(E117/E116,0) -> 0
D118: LSK | F118: =IFERROR(E118/E116,0) -> 0
D119: Moisture
D121: Cleaned Sample
D122: Fancy | F122: =IFERROR(E122/E121,0) -> 0
D123: Kernels Riding ELK Screen
D124: Total ELK Damage
D125: Net ELK | E125: =E123-E124 -> 0 | F125: =IFERROR(E125/E121,0) -> 0
D126: Kernels Riding Prescribed Screen
D128: Total KRS
D129: Damage KRS
D130: SMKRS | E130: =E128-E129 -> 0 | F130: =IFERROR(E130/E121,0) -> 0
D131: Sound Splits | F131: =IFERROR(E131/E121,0) -> 0
D132: Total SMK | F132: =F130+F131 -> 0
D133: Other Kernels | F133: =IFERROR(E133/E121,0) -> 0
D134: Damage Splits
D135: Total Damage | F135: =IFERROR(E135/E121,0) -> 0
D136: Total Kernels | F136: =F132+F133+F134+F135 -> 0
D137: Hulls | F137: =IFERROR(E137/E121,0) -> 0
D138: Total Kernels & Halls | F138: =F136+F137 -> 0
D139: Freeze Damage | F139: =IFERROR(E139/E121,0) -> 0
D140: Concealed RMD | F140: =IFERROR(E140/E121,0) -> 0
D141: Remarks
D144: Rainfall/Irrigation | E144: Date | F144: Amount (in) | G144: Month | I144: Month | J144: Amount (in)
G145: =IF(ISBLANK(E145),"",TEXT(E145,"mmm")) ->  | I145: Jan | J145: =SUMIF(G$145:G$244,"=" & I145,F$145:F$244) -> 0
G146: =IF(ISBLANK(E146),"",TEXT(E146,"mmm")) ->  | I146: Feb | J146: =SUMIF(G$145:G$244,"=" & I146,F$145:F$244) -> 0
I147: Mar | J147: 0
I148: Apr | J148: 0
I149: May | J149: 0
I150: Jun | J150: 0
I151: Jul | J151: 0
I152: Aug | J152: 0
I153: Sep | J153: 0
I154: Oct | J154: 0
I155: Nov | J155: 0
I156: Dec | J156: 0
G210: =IF(ISBLANK(E210),"",TEXT(E210,"mmm")) -> 

Sheet Pests (hidden)
A1: PestType | B1: Pest | C1: PestID
A2: Arthropod | B2: Spider Mites | C2: SM
A3: Disease (Foliar) | B3: Leaf Spot | C3: LS
A4: Disease (Soil Borne) | B4: Sclerotinia Blight | C4: SB
A5: Disease (Soil Borne) | B5: Smut | C5: SMUT
A6: Plant | B6: Weeds | C6: WDS

Sheet Lists (hidden)
A1: Category | B1: Category_Pest | C1: CategoryID | D1: Category_List | E1: Category_List_Type | F1: Months | G1: Land_Area_Units | H1: Crop_Practices\Plant_Pattern | I1: Crop_Practices\Cultivar | J1: Field\Soil_Smut_Inoculum | K1: Crops | L1: Field\Tillage_System | M1: Pest_History\Leaf_Spot | N1: Pest_History\Sclerotoina_Blight | O1: Treatments\Weed_Mgmt | P1: Leaf_Spot_Management\Spray_Schedule | Q1: Leaf_Spot_Management\Chlorothalonil_Applications | R1: Pest_History\Smut | S1: Treatments\Miticides | T1: Field\Weeds_and_Herbicide_Resistance | U1: Weather_Pattern\Period_1_Sept_and_Oct | V1: Weather_Pattern\Period_3_Jan_and_Feb | W1: Weather_Pattern\Period_4_Mar_and_Apr | X1: Weather_Pattern\Period_2_Nov_and_Dec | Y1: Treatments\Iridium_Applictions | Z1: Leaf_Spot_Management\Fungicide_Resistance
A2: Crop_Practices\Cultivar | C2: Crop_Practices\Cultivar | D2: Crop_Practices\Cultivar | E2: Single | F2: (01) January | G2: ac | H2: 01|< 10 plts/m (70 cm single row) | I2: ASEM 400 | J2: 01|0 - 499 spores/g soil | K2: Corn | L2: Cover Crop | M2: 01|No history | N2: 01|No history | O2: 01|None | P2: 01|Calendar | Q2: 01|None | R2: 01|No history | S2: 01|None | T2: Annual Grass | U2: 01|Dry | V2: 01|Dry | W2: 01|Dry | X2: 01|Dry | Y2: 01|None | Z2: 01|Group M (Multi-site)
A3: Crop_Practices\Plant_Pattern | C3: Crop_Practices\Plant_Pattern | D3: Crop_Practices\Plant_Pattern | E3: Single | F3: (02) February | G3: ha | H3: 02|> 10 plts/m (70 cm single row) | I3: EC-191 RC | J3: 02|500 - 999 spores/g soil | K3: Peanut | L3: No-Till | M3: 02|Present but controlled with good fungicide program | N3: 02|Present | O3: 02|PPL | P3: 02|Calendar (Skip when dry) | Q3: 02|1 Spray | R3: 02|Present but controlled with good fungicide program | S3: 02|Abamectin | T3: Annual Grass (ACC and ALS resistant) | U3: 02|Moist | V3: 02|Moist | W3: 02|Moist | X3: 02|Moist | Y3: 02|1 Spray | Z3: 02|Groups 3+7
A4: Field\Soil_Smut_Inoculum | C4: Field\Soil_Smut_Inoculum | D4: Field\Soil_Smut_Inoculum | E4: Single | F4: (03) March | H4: 03|<6 plts/m (90 cm twin row) | I4: EC-214 | J4: 03|1000 - 1499 spores/g soil | K4: Soybean | L4: Reduced Tillage | M4: 03|Problem with good fungicide program | O4: 03|PRE | Q4: 02|2 Sprays | R4: 03|Problem with good fungicide program | T4: Annual Grass (ACC resistant) | U4: 03|Wet | V4: 03|Wet | W4: 03|Wet | X4: 03|Wet | Y4: 03|2 Sprays | Z4: 03|Groups 3+11
A5: Field\Tillage_System | C5: Field\Tillage_System | D5: Field\Tillage_System | E5: Single | F5: (04) April | H5: 04|>6 plts/m (90 cm twin row) | I5: EC-98 | J5: 04|1500 or greater spores/g soil | O5: 04|PRE + EPOST | Q5: 03|3 Sprays | T5: Annual Grass (ALS resistant) | Z5: 04|Groups 7+11
A6: Field\Weeds_and_Herbicide_Resistance | C6: Field\Weeds_and_Herbicide_Resistance | D6: Field\Weeds_and_Herbicide_Resistance | E6: Single | F6: (05) May | I6: Granoleico | O6: 05|PRE + EPOST + MPOST | T6: Conyza | Z6: 05|Groups 3+7+11
A7: Field_Crop_History\Crop_1_Season_Ago | C7: Field_Crop_History\Crop_1_Season_Ago | D7: Crops | E7: Single | F7: (06) June | I7: MA-02 | O7: 06|PRE + EPOST + MPOST + LPOST | T7: Conyza (Glyphosate resistant) | Z7: 06|Groups 3+7+11+M
A8: Field_Crop_History\Crop_2_Seasons_Ago | C8: Field_Crop_History\Crop_2_Seasons_Ago | D8: Crops | E8: Single | F8: (07) July | I8: MA-757 | O8: 07|PRE + EPOST + Hand weed | T8: Others
A9: Field_Crop_History\Crop_3_Seasons_Ago | C9: Field_Crop_History\Crop_3_Seasons_Ago | D9: Crops | E9: Single | F9: (08) August | I9: MA-88 | O9: 08|PRE + EPOST + MPOST + Hand weed | T9: Palmer A.
A10: Leaf_Spot_Management\Chlorothalonil_Applications | C10: Leaf_Spot_Management\Chlorothalonil_Applications | D10: Leaf_Spot_Management\Chlorothalonil_Applications | E10: Single | F10: (09) September | O10: 09|PRE + EPOST + MPOST + LPOST + Hand weed | T10: Palmer A. (ALS resistant)
A11: Leaf_Spot_Management\Fungicide_Resistance | C11: Leaf_Spot_Management\Fungicide_Resistance | D11: Leaf_Spot_Management\Fungicide_Resistance | E11: Single | F11: (10) October | O11: 10|EPOST | T11: Pigweed
A12: Leaf_Spot_Management\Spray_Schedule | C12: Leaf_Spot_Management\Spray_Schedule | D12: Leaf_Spot_Management\Spray_Schedule | E12: Single | F12: (11) November | O12: 11|MPOST | T12: Pigweed (ALS resistant)
A13: Pest_History\Leaf_Spot | C13: Pest_History\Leaf_Spot | D13: Pest_History\Leaf_Spot | E13: Single | F13: (12) December | O13: 12|LPOST | T13: Sedges
A14: Pest_History\Sclerotoina_Blight | C14: Pest_History\Sclerotoina_Blight | D14: Pest_History\Sclerotoina_Blight | E14: Single | T14: Volunteer Corn
A15: Pest_History\Smut | C15: Pest_History\Smut | D15: Pest_History\Smut | E15: Single | T15: Volunteer Soybean
A16: Treatments\Iridium_Applictions | C16: Treatments\Iridium_Applictions | D16: Treatments\Iridium_Applictions | E16: Single
A17: Treatments\Miticides | C17: Treatments\Miticides | D17: Treatments\Miticides | E17: Single
A18: Treatments\Weed_Mgmt | C18: Treatments\Weed_Mgmt | D18: Treatments\Weed_Mgmt | E18: Single
A19: Weather_Pattern\Period_1_Sept_and_Oct | C19: Weather_Pattern\Period_1_Sept_and_Oct | D19: Weather_Pattern\Period_1_Sept_and_Oct | E19: Single
A20: Weather_Pattern\Period_2_Nov_and_Dec | C20: Weather_Pattern\Period_2_Nov_and_Dec | D20: Weather_Pattern\Period_2_Nov_and_Dec | E20: Single
A21: Weather_Pattern\Period_3_Jan_and_Feb | C21: Weather_Pattern\Period_3_Jan_and_Feb | D21: Weather_Pattern\Period_3_Jan_and_Feb | E21: Single
A22: Weather_Pattern\Period_4_Mar_and_Apr | C22: Weather_Pattern\Period_4_Mar_and_Apr | D22: Weather_Pattern\Period_4_Mar_and_Apr | E22: Single

Sheet Costs (hidden)
A1: Land Area Units | B1: ha | H1: =Cost_Header -> Cost ($/ha) | K1: =CONCATENATE("Person Hours (hrs/",sel_Land_Area_Units,")") -> Person Hours (hrs/ha)
A2: Category | B2: Item | C2: =CONCATENATE("Cost ($/",sel_Land_Area_Units,")") -> Cost ($/ha) | D2: Multiplier | E2: =CONCATENATE("Person Hours (hrs/",sel_Land_Area_Units,")") -> Person Hours (hrs/ha) | G2: Category | H2: Max | I2: Min | J2: Sel | K2: Max | L2: Min | M2: Sel | N2: Selection
A3: Base_Cost | C3: 0 | G3: Base_Cost | H3: =Cost_Base -> 0 | I3: =Cost_Base -> 0 | J3: =Cost_Base -> 0 | K3: =PersonHours_Base -> 0 | L3: =PersonHours_Base -> 0 | M3: =PersonHours_Base -> 0
G5: Total | H5: =SUM(H$3:H3) -> 0 | I5: =SUM(I$3:I3) -> 0 | J5: =IF(ISERROR(SUM(J$3:J3)),0,SUM(J$3:J3)) -> 0 | K5: =SUM(K$3:K3) -> 0 | L5: =SUM(L$3:L3) -> 0 | M5: =IF(ISERROR(SUM(M$3:M3)),0,SUM(M$3:M3)) -> 0
H7: =CONCATENATE("Cost Thresholds ($/",sel_Land_Area_Units,")") -> Cost Thresholds ($/ha) | K7: =CONCATENATE("Person Hour Thresholds (hrs/",sel_Land_Area_Units,")") -> Person Hour Thresholds (hrs/ha)
G8: High | H8: =Cost_Min + 0.66667*(Cost_Max-Cost_Min) -> 0 | K8: =PersonHours_Min + 0.66667*(PersonHours_Max-PersonHours_Min) -> 0
G9: Moderate | H9: =Cost_Min + 0.33333*(Cost_Max-Cost_Min) -> 0 | K9: =PersonHours_Min + 0.33333*(PersonHours_Max-PersonHours_Min) -> 0
H11: =CONCATENATE("Cost Ranges ($/",sel_Land_Area_Units,")") -> Cost Ranges ($/ha) | K11: =CONCATENATE("Person Hour Ranges (hrs/",sel_Land_Area_Units,")") -> Person Hour Ranges (hrs/ha)
G12: Base | H12: =Cost_Base -> 0 | K12: =PersonHours_Base -> 0
G13: Low | H13: =Cost_Moderate-Cost_Base -> 0 | K13: =PersonHours_Moderate-PersonHours_Base -> 0
G14: Moderate | H14: =Cost_High-Cost_Moderate -> 0 | K14: =PersonHours_High-PersonHours_Moderate -> 0
G15: High | H15: =Cost_Max-Cost_High -> 0 | K15: =PersonHours_Max-PersonHours_High -> 0
G17: =CONCATENATE("Estimated Cost: $",ROUNDUP(TRUNC(Cost,2),0),"/",sel_Land_Area_Units) -> Estimated Cost: $0/ha
G24: =CONCATENATE("Estimated Person Hours: ",ROUNDUP(TRUNC(PersonHours,2),0)," hrs/",sel_Land_Area_Units) -> Estimated Person Hours: 0 hrs/ha

Sheet Logos (hidden)

Sheet Pest_Report (hidden)
A1: Peanut - Leaf Spot Risk Summary
A6: Crop Practices\Cultivar | C6: Risk Points
B7: ASEM 400, EC-98 | C7: 35 | D7: 32
B8: Granoleico, MA-02* | C8: 32
B9: EC-191 RC, EC-214, MA-757, MA-88 | C9: 30
A10: Crop Practices\Plant Pattern | C10: Risk Points
B11: > 10 plts/m (70 cm single row), >6 plts/m (90 cm twin row) | C11: 12 | D11: 10
B12: < 10 plts/m (70 cm single row), <6 plts/m (90 cm twin row)* | C12: 10
A13: Field\Tillage System | C13: Risk Points
B14: Reduced Tillage* | C14: 15 | D14: 15
B15: No-Till | C15: 10
B16: Cover Crop | C16: 5
A17: Field Crop History\Crop 1 Season Ago | C17: Risk Points
B18: Peanut | C18: 50 | D18: 20
B19: Corn, Soybean* | C19: 20
A20: Field Crop History\Crop 2 Seasons Ago | C20: Risk Points
B21: Peanut | C21: 40 | D21: 20
B22: Corn, Soybean* | C22: 20
A23: Field Crop History\Crop 3 Seasons Ago | C23: Risk Points
B24: Peanut | C24: 30 | D24: 20
B25: Corn, Soybean* | C25: 20
A26: Leaf Spot Management\Chlorothalonil Applications | C26: Risk Points
B27: None | C27: 15 | D27: 5
B28: 1 Spray, 2 Sprays, 3 Sprays* | C28: 5
A29: Leaf Spot Management\Fungicide Resistance | C29: Risk Points
B30: Groups 3+7+11+M* | C30: 100 | D30: 100
B31: Group M (Multi-site), Groups 3+7+11 | C31: 60
B32: Groups 3+7, Groups 3+11, Groups 7+11 | C32: 30
A33: Leaf Spot Management\Spray Schedule | C33: Risk Points
B34: Calendar (Skip when dry) | C34: 10 | D34: 5
B35: Calendar* | C35: 5
A36: Pest History\Leaf Spot | C36: Risk Points
B37: Problem with good fungicide program* | C37: 20 | D37: 20
B38: Present but controlled with good fungicide program | C38: 10
B39: No history | C39: 5
A40: Weather Pattern\Period 1 Sept and Oct | C40: Risk Points
B41: Wet | C41: 5 | D41: 2
B42: Moist* | C42: 2
B43: Dry | C43: 0
A44: Weather Pattern\Period 2 Nov and Dec | C44: Risk Points
B45: Wet | C45: 15 | D45: 5
B46: Moist* | C46: 5
B47: Dry | C47: 0
A48: Weather Pattern\Period 3 Jan and Feb | C48: Risk Points
B49: Wet | C49: 30 | D49: 20
B50: Moist* | C50: 20
B51: Dry | C51: 10
A52: Weather Pattern\Period 4 Mar and Apr | C52: Risk Points
B53: Wet | C53: 20 | D53: 10
B54: Moist* | C54: 10
B55: Dry | C55: 5
A57: * Selected options used in calculating pest risk. Note: Reduction in pest risk value by a control practice will be less under low risk conditions.

Sheet WDS (hidden)
A1: Weeds
A2: Category | B2: Risk Level | C2: Risk Level Description | D2: Points | H2: Category | I2: Max | J2: Min | K2: Risk | L2: Selection
A3: Crop_Practices\Cultivar | B3: 1 | C3: MA-02 | D3: 20 | H3: Field\Weeds_and_Herbicide_Resistance | I3: 150 | J3: 20 | K3: =getRiskValue("A:A",H3,J3,L3,"Single") -> 150 | L3: =IF(ISBLANK(sel_Field\Weeds_and_Herbicide_Resistance),"",sel_Field\Weeds_and_Herbicide_Resistance) -> Palmer A. (ALS resistant)
A4: Crop_Practices\Cultivar | B4: 2 | C4: EC-191 RC|EC-214|MA-757|MA-88 | D4: 15 | H4: Crop_Practices\Cultivar | I4: 20 | J4: 10 | K4: =getRiskValue("A:A",H4,J4,L4,"Single") -> 20 | L4: =IF(ISBLANK(sel_Crop_Practices\Cultivar),"",sel_Crop_Practices\Cultivar) -> MA-02
A5: Crop_Practices\Cultivar | B5: 3 | C5: ASEM 400|EC-98|Granoleico | D5: 10 | H5: Field\Tillage_System | I5: 15 | J5: 10 | K5: =getRiskValue("A:A",H5,J5,L5,"Single") -> 15 | L5: =IF(ISBLANK(sel_Field\Tillage_System),"",sel_Field\Tillage_System) -> Reduced Tillage
A6: Crop_Practices\Plant_Pattern | B6: 1 | C6: <6 plts/m (90 cm twin row) | D6: 12 | H6: Crop_Practices\Plant_Pattern | I6: 12 | J6: 5 | K6: =getRiskValue("A:A",H6,J6,L6,"Single") -> 12 | L6: =IF(ISBLANK(sel_Crop_Practices\Plant_Pattern),"",sel_Crop_Practices\Plant_Pattern) -> <6 plts/m (90 cm twin row)
A7: Crop_Practices\Plant_Pattern | B7: 2 | C7: < 10 plts/m (70 cm single row) | D7: 10 | H7: Treatments\Weed_Mgmt | I7: 0 | J7: -150 | K7: =getRiskValue("A:A",H7,J7,L7,"Single") -> -105 | L7: =IF(ISBLANK(sel_Treatments\Weed_Mgmt),"",sel_Treatments\Weed_Mgmt) -> PRE + EPOST + MPOST
A8: Crop_Practices\Plant_Pattern | B8: 3 | C8: >6 plts/m (90 cm twin row) | D8: 8
A9: Crop_Practices\Plant_Pattern | B9: 4 | C9: > 10 plts/m (70 cm single row) | D9: 5 | H9: Total | I9: =SUMIF(I3:I7,">0") -> 197 | J9: =SUMIF(J3:J7,">0") -> 45 | K9: =MAX(WDS_MinRiskIndex,SUM(K3:K7)) -> 92
A10: Field\Tillage_System | B10: 1 | C10: No-Till|Reduced Tillage | D10: 15
A11: Field\Tillage_System | B11: 2 | C11: Cover Crop | D11: 10 | H11: High Risk Index | I11: 90
A12: Field\Weeds_and_Herbicide_Resistance | B12: 1 | C12: Annual Grass (ACC and ALS resistant)|Conyza (Glyphosate resistant)|Palmer A. (ALS resistant)|Pigweed (ALS resistant) | D12: 150 | H12: Moderate Risk Index | I12: 62
A13: Field\Weeds_and_Herbicide_Resistance | B13: 2 | C13: Annual Grass (ACC resistant)|Annual Grass (ALS resistant)|Volunteer Soybean | D13: 100
A14: Field\Weeds_and_Herbicide_Resistance | B14: 3 | C14: Palmer A.|Pigweed | D14: 90
A15: Field\Weeds_and_Herbicide_Resistance | B15: 4 | C15: Conyza|Volunteer Corn | D15: 70
A16: Field\Weeds_and_Herbicide_Resistance | B16: 5 | C16: Annual Grass|Sedges | D16: 50
A17: Field\Weeds_and_Herbicide_Resistance | B17: 6 | C17: Others | D17: 20
A18: Treatments\Weed_Mgmt | B18: 1 | C18: None|PPL|EPOST | D18: 0
A19: Treatments\Weed_Mgmt | B19: 2 | C19: PRE|LPOST | D19: -55
A20: Treatments\Weed_Mgmt | B20: 3 | C20: PRE + EPOST|MPOST | D20: -90
A21: Treatments\Weed_Mgmt | B21: 4 | C21: PRE + EPOST + MPOST | D21: -105
A22: Treatments\Weed_Mgmt | B22: 5 | C22: PRE + EPOST + MPOST + LPOST | D22: -130
A23: Treatments\Weed_Mgmt | B23: 6 | C23: PRE + EPOST + Hand weed|PRE + EPOST + MPOST + Hand weed|PRE + EPOST + MPOST + LPOST + Hand weed | D23: -150

Sheet SM (hidden)
A1: Spider Mites
A2: Category | B2: Risk Level | C2: Risk Level Description | D2: Points | H2: Category | I2: Max | J2: Min | K2: Risk | L2: Selection
A3: Leaf_Spot_Management\Chlorothalonil_Applications | B3: 1 | C3: 3 Sprays | D3: 25 | H3: Leaf_Spot_Management\Spray_Schedule | I3: 40 | J3: 20 | K3: =getRiskValue("A:A",H3,J3,L3,"Single") -> 40 | L3: =IF(ISBLANK(sel_Leaf_Spot_Management\Spray_Schedule),"",sel_Leaf_Spot_Management\Spray_Schedule) -> Calendar
A4: Leaf_Spot_Management\Chlorothalonil_Applications | B4: 2 | C4: 2 Sprays | D4: 15 | H4: Leaf_Spot_Management\Chlorothalonil_Applications | I4: 25 | J4: 0 | K4: 25 | L4: =IF(ISBLANK(sel_Leaf_Spot_Management\Chlorothalonil_Applications),"",sel_Leaf_Spot_Management\Chlorothalonil_Applications) -> 3 Sprays
A5: Leaf_Spot_Management\Chlorothalonil_Applications | B5: 3 | C5: 1 Spray | D5: 5 | H5: Weather_Pattern\Period_3_Jan_and_Feb | I5: 25 | J5: 5 | K5: 15 | L5: =IF(ISBLANK(sel_Weather_Pattern\Period_3_Jan_and_Feb),"",sel_Weather_Pattern\Period_3_Jan_and_Feb) -> Moist
A6: Leaf_Spot_Management\Chlorothalonil_Applications | B6: 4 | C6: None | D6: 0 | H6: Weather_Pattern\Period_2_Nov_and_Dec | I6: 15 | J6: 5 | K6: 10 | L6: =IF(ISBLANK(sel_Weather_Pattern\Period_2_Nov_and_Dec),"",sel_Weather_Pattern\Period_2_Nov_and_Dec) -> Moist
A7: Leaf_Spot_Management\Spray_Schedule | B7: 1 | C7: Calendar | D7: 40 | H7: Weather_Pattern\Period_4_Mar_and_Apr | I7: 15 | J7: 0 | K7: 8 | L7: =IF(ISBLANK(sel_Weather_Pattern\Period_4_Mar_and_Apr),"",sel_Weather_Pattern\Period_4_Mar_and_Apr) -> Moist
A8: Leaf_Spot_Management\Spray_Schedule | B8: 2 | C8: Calendar (Skip when dry) | D8: 20 | H8: Weather_Pattern\Period_1_Sept_and_Oct | I8: 10 | J8: 0 | K8: 5 | L8: =IF(ISBLANK(sel_Weather_Pattern\Period_1_Sept_and_Oct),"",sel_Weather_Pattern\Period_1_Sept_and_Oct) -> Moist
A9: Treatments\Miticides | B9: 1 | C9: None | D9: 0 | H9: Treatments\Miticides | I9: 0 | J9: -30 | K9: -30 | L9: =IF(ISBLANK(sel_Treatments\Miticides),"",sel_Treatments\Miticides) -> Abamectin
A10: Treatments\Miticides | B10: 2 | C10: Abamectin | D10: -30
A11: Weather_Pattern\Period_1_Sept_and_Oct | B11: 1 | C11: Dry | D11: 10 | H11: Total | I11: =SUMIF(I3:I9,">0") -> 130 | J11: =SUMIF(J3:J9,">0") -> 30 | K11: =MAX(SM_MinRiskIndex,SUM(K3:K9)) -> 73
A12: Weather_Pattern\Period_1_Sept_and_Oct | B12: 2 | C12: Moist | D12: 5
A13: Weather_Pattern\Period_1_Sept_and_Oct | B13: 3 | C13: Wet | D13: 0 | H13: High Risk Index | I13: 98
A14: Weather_Pattern\Period_2_Nov_and_Dec | B14: 1 | C14: Dry | D14: 15 | H14: Moderate Risk Index | I14: 67
A15: Weather_Pattern\Period_2_Nov_and_Dec | B15: 2 | C15: Moist | D15: 10
A16: Weather_Pattern\Period_2_Nov_and_Dec | B16: 3 | C16: Wet | D16: 5
A17: Weather_Pattern\Period_3_Jan_and_Feb | B17: 1 | C17: Dry | D17: 25
A18: Weather_Pattern\Period_3_Jan_and_Feb | B18: 2 | C18: Moist | D18: 15
A19: Weather_Pattern\Period_3_Jan_and_Feb | B19: 3 | C19: Wet | D19: 5
A20: Weather_Pattern\Period_4_Mar_and_Apr | B20: 1 | C20: Dry | D20: 15
A21: Weather_Pattern\Period_4_Mar_and_Apr | B21: 2 | C21: Moist | D21: 8
A22: Weather_Pattern\Period_4_Mar_and_Apr | B22: 3 | C22: Wet | D22: 0

Sheet LS (hidden)
A1: Leaf Spot
A2: Category | B2: Risk Level | C2: Risk Level Description | D2: Points | H2: Category | I2: Max | J2: Min | K2: Risk | L2: Selection
A3: Crop_Practices\Cultivar | B3: 1 | C3: ASEM 400|EC-98 | D3: 35 | H3: Leaf_Spot_Management\Fungicide_Resistance | I3: 100 | J3: 30 | K3: =getRiskValue("A:A",H3,J3,L3,"Single") -> 100 | L3: =IF(ISBLANK(sel_Leaf_Spot_Management\Fungicide_Resistance),"",sel_Leaf_Spot_Management\Fungicide_Resistance) -> Groups 3+7+11+M
A4: Crop_Practices\Cultivar | B4: 2 | C4: Granoleico|MA-02 | D4: 32 | H4: Field_Crop_History\Crop_1_Season_Ago | I4: 50 | J4: 20 | K4: =getRiskValue("A:A",H4,J4,L4,"Single") -> 20 | L4: =IF(ISBLANK(sel_Field_Crop_History\Crop_1_Season_Ago),"",sel_Field_Crop_History\Crop_1_Season_Ago) -> Soybean
A5: Crop_Practices\Cultivar | B5: 3 | C5: EC-191 RC|EC-214|MA-757|MA-88 | D5: 30 | H5: Field_Crop_History\Crop_2_Seasons_Ago | I5: 40 | J5: 20 | K5: =getRiskValue("A:A",H5,J5,L5,"Single") -> 20 | L5: =IF(ISBLANK(sel_Field_Crop_History\Crop_2_Seasons_Ago),"",sel_Field_Crop_History\Crop_2_Seasons_Ago) -> Soybean
A6: Crop_Practices\Plant_Pattern | B6: 1 | C6: > 10 plts/m (70 cm single row)|>6 plts/m (90 cm twin row) | D6: 12 | H6: Crop_Practices\Cultivar | I6: 35 | J6: 30 | K6: =getRiskValue("A:A",H6,J6,L6,"Single") -> 32 | L6: =IF(ISBLANK(sel_Crop_Practices\Cultivar),"",sel_Crop_Practices\Cultivar) -> MA-02
A7: Crop_Practices\Plant_Pattern | B7: 2 | C7: < 10 plts/m (70 cm single row)|<6 plts/m (90 cm twin row) | D7: 10 | H7: Field_Crop_History\Crop_3_Seasons_Ago | I7: 30 | J7: 20 | K7: =getRiskValue("A:A",H7,J7,L7,"Single") -> 20 | L7: =IF(ISBLANK(sel_Field_Crop_History\Crop_3_Seasons_Ago),"",sel_Field_Crop_History\Crop_3_Seasons_Ago) -> Soybean
A8: Field\Tillage_System | B8: 1 | C8: Reduced Tillage | D8: 15 | H8: Weather_Pattern\Period_3_Jan_and_Feb | I8: 30 | J8: 10 | K8: =getRiskValue("A:A",H8,J8,L8,"Single") -> 20 | L8: =IF(ISBLANK(sel_Weather_Pattern\Period_3_Jan_and_Feb),"",sel_Weather_Pattern\Period_3_Jan_and_Feb) -> Moist
A9: Field\Tillage_System | B9: 2 | C9: No-Till | D9: 10 | H9: Pest_History\Leaf_Spot | I9: 20 | J9: 5 | K9: =getRiskValue("A:A",H9,J9,L9,"Single") -> 20 | L9: =IF(ISBLANK(sel_Pest_History\Leaf_Spot),"",sel_Pest_History\Leaf_Spot) -> Problem with good fungicide program
A10: Field\Tillage_System | B10: 3 | C10: Cover Crop | D10: 5 | H10: Weather_Pattern\Period_4_Mar_and_Apr | I10: 20 | J10: 5 | K10: =getRiskValue("A:A",H10,J10,L10,"Single") -> 10 | L10: =IF(ISBLANK(sel_Weather_Pattern\Period_4_Mar_and_Apr),"",sel_Weather_Pattern\Period_4_Mar_and_Apr) -> Moist
A11: Field_Crop_History\Crop_1_Season_Ago | B11: 1 | C11: Peanut | D11: 50 | H11: Field\Tillage_System | I11: 15 | J11: 5 | K11: =getRiskValue("A:A",H11,J11,L11,"Single") -> 15 | L11: =IF(ISBLANK(sel_Field\Tillage_System),"",sel_Field\Tillage_System) -> Reduced Tillage
A12: Field_Crop_History\Crop_1_Season_Ago | B12: 2 | C12: Corn|Soybean | D12: 20 | H12: Leaf_Spot_Management\Chlorothalonil_Applications | I12: 15 | J12: 5 | K12: =getRiskValue("A:A",H12,J12,L12,"Single") -> 5 | L12: =IF(ISBLANK(sel_Leaf_Spot_Management\Chlorothalonil_Applications),"",sel_Leaf_Spot_Management\Chlorothalonil_Applications) -> 3 Sprays
A13: Field_Crop_History\Crop_2_Seasons_Ago | B13: 1 | C13: Peanut | D13: 40 | H13: Weather_Pattern\Period_2_Nov_and_Dec | I13: 15 | J13: 0 | K13: =getRiskValue("A:A",H13,J13,L13,"Single") -> 5 | L13: =IF(ISBLANK(sel_Weather_Pattern\Period_2_Nov_and_Dec),"",sel_Weather_Pattern\Period_2_Nov_and_Dec) -> Moist
A14: Field_Crop_History\Crop_2_Seasons_Ago | B14: 2 | C14: Corn|Soybean | D14: 20 | H14: Crop_Practices\Plant_Pattern | I14: 12 | J14: 10 | K14: =getRiskValue("A:A",H14,J14,L14,"Single") -> 10 | L14: =IF(ISBLANK(sel_Crop_Practices\Plant_Pattern),"",sel_Crop_Practices\Plant_Pattern) -> <6 plts/m (90 cm twin row)
A15: Field_Crop_History\Crop_3_Seasons_Ago | B15: 1 | C15: Peanut | D15: 30 | H15: Leaf_Spot_Management\Spray_Schedule | I15: 10 | J15: 5 | K15: =getRiskValue("A:A",H15,J15,L15,"Single") -> 5 | L15: =IF(ISBLANK(sel_Leaf_Spot_Management\Spray_Schedule),"",sel_Leaf_Spot_Management\Spray_Schedule) -> Calendar
A16: Field_Crop_History\Crop_3_Seasons_Ago | B16: 2 | C16: Corn|Soybean | D16: 20 | H16: Weather_Pattern\Period_1_Sept_and_Oct | I16: 5 | J16: 0 | K16: =getRiskValue("A:A",H16,J16,L16,"Single") -> 2 | L16: =IF(ISBLANK(sel_Weather_Pattern\Period_1_Sept_and_Oct),"",sel_Weather_Pattern\Period_1_Sept_and_Oct) -> Moist
A17: Leaf_Spot_Management\Chlorothalonil_Applications | B17: 1 | C17: None | D17: 15
A18: Leaf_Spot_Management\Chlorothalonil_Applications | B18: 2 | C18: 1 Spray|2 Sprays|3 Sprays | D18: 5 | H18: Total | I18: =SUMIF(I3:I16,">0") -> 397 | J18: =SUMIF(J3:J16,">0") -> 165 | K18: =MAX(LS_MinRiskIndex,SUM(K3:K16)) -> 284
A19: Leaf_Spot_Management\Fungicide_Resistance | B19: 1 | C19: Groups 3+7+11+M | D19: 100
A20: Leaf_Spot_Management\Fungicide_Resistance | B20: 2 | C20: Group M (Multi-site)|Groups 3+7+11 | D20: 60 | H20: High Risk Index | I20: 280
A21: Leaf_Spot_Management\Fungicide_Resistance | B21: 3 | C21: Groups 3+7|Groups 3+11|Groups 7+11 | D21: 30 | H21: Moderate Risk Index | I21: 212
A22: Leaf_Spot_Management\Spray_Schedule | B22: 1 | C22: Calendar (Skip when dry) | D22: 10
A23: Leaf_Spot_Management\Spray_Schedule | B23: 2 | C23: Calendar | D23: 5
A24: Pest_History\Leaf_Spot | B24: 1 | C24: Problem with good fungicide program | D24: 20
A25: Pest_History\Leaf_Spot | B25: 2 | C25: Present but controlled with good fungicide program | D25: 10
A26: Pest_History\Leaf_Spot | B26: 3 | C26: No history | D26: 5
A27: Weather_Pattern\Period_1_Sept_and_Oct | B27: 1 | C27: Wet | D27: 5
A28: Weather_Pattern\Period_1_Sept_and_Oct | B28: 2 | C28: Moist | D28: 2
A29: Weather_Pattern\Period_1_Sept_and_Oct | B29: 3 | C29: Dry | D29: 0
A30: Weather_Pattern\Period_2_Nov_and_Dec | B30: 1 | C30: Wet | D30: 15
A31: Weather_Pattern\Period_2_Nov_and_Dec | B31: 2 | C31: Moist | D31: 5
A32: Weather_Pattern\Period_2_Nov_and_Dec | B32: 3 | C32: Dry | D32: 0
A33: Weather_Pattern\Period_3_Jan_and_Feb | B33: 1 | C33: Wet | D33: 30
A34: Weather_Pattern\Period_3_Jan_and_Feb | B34: 2 | C34: Moist | D34: 20
A35: Weather_Pattern\Period_3_Jan_and_Feb | B35: 3 | C35: Dry | D35: 10
A36: Weather_Pattern\Period_4_Mar_and_Apr | B36: 1 | C36: Wet | D36: 20
A37: Weather_Pattern\Period_4_Mar_and_Apr | B37: 2 | C37: Moist | D37: 10
A38: Weather_Pattern\Period_4_Mar_and_Apr | B38: 3 | C38: Dry | D38: 5

Sheet SB (hidden)
A1: Sclerotinia Blight
A2: Category | B2: Risk Level | C2: Risk Level Description | D2: Points | H2: Category | I2: Max | J2: Min | K2: Risk | L2: Selection
A3: Crop_Practices\Cultivar | B3: 1 | C3: EC-191 RC|Granoleico | D3: 40 | H3: Pest_History\Sclerotoina_Blight | I3: 50 | J3: 5 | K3: =getRiskValue("A:A",H3,J3,L3,"Single") -> 50 | L3: =IF(ISBLANK(sel_Pest_History\Sclerotoina_Blight),"",sel_Pest_History\Sclerotoina_Blight) -> Present
A4: Crop_Practices\Cultivar | B4: 2 | C4: ASEM 400|EC-214|EC-98|MA-02|MA-757|MA-88 | D4: 35 | H4: Crop_Practices\Cultivar | I4: 40 | J4: 35 | K4: 35 | L4: =IF(ISBLANK(sel_Crop_Practices\Cultivar),"",sel_Crop_Practices\Cultivar) -> MA-02
A5: Crop_Practices\Plant_Pattern | B5: 1 | C5: > 10 plts/m (70 cm single row) | D5: 15 | H5: Field\Tillage_System | I5: 40 | J5: 30 | K5: 40 | L5: =IF(ISBLANK(sel_Field\Tillage_System),"",sel_Field\Tillage_System) -> Reduced Tillage
A6: Crop_Practices\Plant_Pattern | B6: 2 | C6: < 10 plts/m (70 cm single row)|>6 plts/m (90 cm twin row) | D6: 10 | H6: Weather_Pattern\Period_4_Mar_and_Apr | I6: 30 | J6: 5 | K6: 15 | L6: =IF(ISBLANK(sel_Weather_Pattern\Period_4_Mar_and_Apr),"",sel_Weather_Pattern\Period_4_Mar_and_Apr) -> Moist
A7: Crop_Practices\Plant_Pattern | B7: 3 | C7: <6 plts/m (90 cm twin row) | D7: 5 | H7: Weather_Pattern\Period_3_Jan_and_Feb | I7: 25 | J7: 5 | K7: 15 | L7: =IF(ISBLANK(sel_Weather_Pattern\Period_3_Jan_and_Feb),"",sel_Weather_Pattern\Period_3_Jan_and_Feb) -> Moist
A8: Field\Tillage_System | B8: 1 | C8: Reduced Tillage | D8: 40 | H8: Field_Crop_History\Crop_1_Season_Ago | I8: 24 | J8: 16 | K8: 24 | L8: =IF(ISBLANK(sel_Field_Crop_History\Crop_1_Season_Ago),"",sel_Field_Crop_History\Crop_1_Season_Ago) -> Soybean
A9: Field\Tillage_System | B9: 2 | C9: No-Till | D9: 35 | H9: Field_Crop_History\Crop_2_Seasons_Ago | I9: 16 | J9: 8 | K9: 16 | L9: =IF(ISBLANK(sel_Field_Crop_History\Crop_2_Seasons_Ago),"",sel_Field_Crop_History\Crop_2_Seasons_Ago) -> Soybean
A10: Field\Tillage_System | B10: 3 | C10: Cover Crop | D10: 30 | H10: Crop_Practices\Plant_Pattern | I10: 15 | J10: 5 | K10: 5 | L10: =IF(ISBLANK(sel_Crop_Practices\Plant_Pattern),"",sel_Crop_Practices\Plant_Pattern) -> <6 plts/m (90 cm twin row)
A11: Field_Crop_History\Crop_1_Season_Ago | B11: 1 | C11: Peanut|Soybean | D11: 24 | H11: Leaf_Spot_Management\Chlorothalonil_Applications | I11: 15 | J11: 0 | K11: 15 | L11: =IF(ISBLANK(sel_Leaf_Spot_Management\Chlorothalonil_Applications),"",sel_Leaf_Spot_Management\Chlorothalonil_Applications) -> 3 Sprays
A12: Field_Crop_History\Crop_1_Season_Ago | B12: 2 | C12: Corn | D12: 16 | H12: Weather_Pattern\Period_2_Nov_and_Dec | I12: 15 | J12: 0 | K12: 5 | L12: =IF(ISBLANK(sel_Weather_Pattern\Period_2_Nov_and_Dec),"",sel_Weather_Pattern\Period_2_Nov_and_Dec) -> Moist
A13: Field_Crop_History\Crop_2_Seasons_Ago | B13: 1 | C13: Peanut|Soybean | D13: 16 | H13: Field_Crop_History\Crop_3_Seasons_Ago | I13: 8 | J13: 2 | K13: 8 | L13: =IF(ISBLANK(sel_Field_Crop_History\Crop_3_Seasons_Ago),"",sel_Field_Crop_History\Crop_3_Seasons_Ago) -> Soybean
A14: Field_Crop_History\Crop_2_Seasons_Ago | B14: 2 | C14: Corn | D14: 8
A15: Field_Crop_History\Crop_3_Seasons_Ago | B15: 1 | C15: Peanut|Soybean | D15: 8 | H15: Total | I15: =SUMIF(I3:I13,">0") -> 278 | J15: =SUMIF(J3:J13,">0") -> 111 | K15: =MAX(SB_MinRiskIndex,SUM(K3:K13)) -> 228
A16: Field_Crop_History\Crop_3_Seasons_Ago | B16: 2 | C16: Corn | D16: 2
A17: Leaf_Spot_Management\Chlorothalonil_Applications | B17: 1 | C17: 3 Sprays | D17: 15 | H17: High Risk Index | I17: 162
A18: Leaf_Spot_Management\Chlorothalonil_Applications | B18: 2 | C18: 1 Spray|2 Sprays | D18: 5 | H18: Moderate Risk Index | I18: 132
A19: Leaf_Spot_Management\Chlorothalonil_Applications | B19: 3 | C19: None | D19: 0
A20: Pest_History\Sclerotoina_Blight | B20: 1 | C20: Present | D20: 50
A21: Pest_History\Sclerotoina_Blight | B21: 2 | C21: No history | D21: 5
A22: Weather_Pattern\Period_2_Nov_and_Dec | B22: 1 | C22: Wet | D22: 15
A23: Weather_Pattern\Period_2_Nov_and_Dec | B23: 2 | C23: Moist | D23: 5
A24: Weather_Pattern\Period_2_Nov_and_Dec | B24: 3 | C24: Dry | D24: 0
A25: Weather_Pattern\Period_3_Jan_and_Feb | B25: 1 | C25: Wet | D25: 25
A26: Weather_Pattern\Period_3_Jan_and_Feb | B26: 2 | C26: Moist | D26: 15
A27: Weather_Pattern\Period_3_Jan_and_Feb | B27: 3 | C27: Dry | D27: 5
A28: Weather_Pattern\Period_4_Mar_and_Apr | B28: 1 | C28: Wet | D28: 30
A29: Weather_Pattern\Period_4_Mar_and_Apr | B29: 2 | C29: Moist | D29: 15
A30: Weather_Pattern\Period_4_Mar_and_Apr | B30: 3 | C30: Dry | D30: 5

Sheet SMUT (hidden)
A1: Smut
A2: Category | B2: Risk Level | C2: Risk Level Description | D2: Points | H2: Category | I2: Max | J2: Min | K2: Risk | L2: Selection
A3: Crop_Practices\Cultivar | B3: 1 | C3: Granoleico | D3: 75 | H3: Crop_Practices\Cultivar | I3: 75 | J3: 0 | K3: =getRiskValue("A:A",H3,J3,L3,"Single") -> 50 | L3: =IF(ISBLANK(sel_Crop_Practices\Cultivar),"",sel_Crop_Practices\Cultivar) -> MA-02
A4: Crop_Practices\Cultivar | B4: 2 | C4: ASEM 400|MA-02|MA-88 | D4: 50 | H4: Field_Crop_History\Crop_1_Season_Ago | I4: 70 | J4: 30 | K4: 40 | L4: =IF(ISBLANK(sel_Field_Crop_History\Crop_1_Season_Ago),"",sel_Field_Crop_History\Crop_1_Season_Ago) -> Soybean
A5: Crop_Practices\Cultivar | B5: 3 | C5: EC-214|EC-98|MA-757 | D5: 35 | H5: Field_Crop_History\Crop_2_Seasons_Ago | I5: 60 | J5: 30 | K5: 40 | L5: =IF(ISBLANK(sel_Field_Crop_History\Crop_2_Seasons_Ago),"",sel_Field_Crop_History\Crop_2_Seasons_Ago) -> Soybean
A6: Crop_Practices\Cultivar | B6: 4 | C6: EC-191 RC | D6: 0 | H6: Field_Crop_History\Crop_3_Seasons_Ago | I6: 50 | J6: 30 | K6: 40 | L6: =IF(ISBLANK(sel_Field_Crop_History\Crop_3_Seasons_Ago),"",sel_Field_Crop_History\Crop_3_Seasons_Ago) -> Soybean
A7: Field\Soil_Smut_Inoculum | B7: 1 | C7: 1500 or greater spores/g soil | D7: 40 | H7: Field\Soil_Smut_Inoculum | I7: 40 | J7: 5 | K7: 40 | L7: =IF(ISBLANK(sel_Field\Soil_Smut_Inoculum),"",sel_Field\Soil_Smut_Inoculum) -> 1500 or greater spores/g soil
A8: Field\Soil_Smut_Inoculum | B8: 2 | C8: 1000 - 1499 spores/g soil | D8: 25 | H8: Pest_History\Smut | I8: 30 | J8: 8 | K8: 30 | L8: =IF(ISBLANK(sel_Pest_History\Smut),"",sel_Pest_History\Smut) -> Problem with good fungicide program
A9: Field\Soil_Smut_Inoculum | B9: 3 | C9: 500 - 999 spores/g soil | D9: 15 | H9: Weather_Pattern\Period_4_Mar_and_Apr | I9: 30 | J9: 5 | K9: 15 | L9: =IF(ISBLANK(sel_Weather_Pattern\Period_4_Mar_and_Apr),"",sel_Weather_Pattern\Period_4_Mar_and_Apr) -> Moist
A10: Field\Soil_Smut_Inoculum | B10: 4 | C10: 0 - 499 spores/g soil | D10: 5 | H10: Weather_Pattern\Period_3_Jan_and_Feb | I10: 25 | J10: 5 | K10: 15 | L10: =IF(ISBLANK(sel_Weather_Pattern\Period_3_Jan_and_Feb),"",sel_Weather_Pattern\Period_3_Jan_and_Feb) -> Moist
A11: Field_Crop_History\Crop_1_Season_Ago | B11: 1 | C11: Peanut | D11: 70 | H11: Weather_Pattern\Period_2_Nov_and_Dec | I11: 15 | J11: 0 | K11: 5 | L11: =IF(ISBLANK(sel_Weather_Pattern\Period_2_Nov_and_Dec),"",sel_Weather_Pattern\Period_2_Nov_and_Dec) -> Moist
A12: Field_Crop_History\Crop_1_Season_Ago | B12: 2 | C12: Soybean | D12: 40 | H12: Treatments\Iridium_Applictions | I12: 0 | J12: -50 | K12: 0 | L12: =IF(ISBLANK(sel_Treatments\Iridium_Applictions),"",sel_Treatments\Iridium_Applictions) -> None
A13: Field_Crop_History\Crop_1_Season_Ago | B13: 3 | C13: Corn | D13: 30
A14: Field_Crop_History\Crop_2_Seasons_Ago | B14: 1 | C14: Peanut | D14: 60 | H14: Total | I14: =SUMIF(I3:I12,">0") -> 395 | J14: =SUMIF(J3:J12,">0") -> 113 | K14: =MAX(SMUT_MinRiskIndex,SUM(K3:K12)) -> 275
A15: Field_Crop_History\Crop_2_Seasons_Ago | B15: 2 | C15: Soybean | D15: 40
A16: Field_Crop_History\Crop_2_Seasons_Ago | B16: 3 | C16: Corn | D16: 30 | H16: High Risk Index | I16: 212
A17: Field_Crop_History\Crop_3_Seasons_Ago | B17: 1 | C17: Peanut | D17: 50 | H17: Moderate Risk Index | I17: 154
A18: Field_Crop_History\Crop_3_Seasons_Ago | B18: 2 | C18: Soybean | D18: 40
A19: Field_Crop_History\Crop_3_Seasons_Ago | B19: 3 | C19: Corn | D19: 30
A20: Pest_History\Smut | B20: 1 | C20: Problem with good fungicide program | D20: 30
A21: Pest_History\Smut | B21: 2 | C21: Present but controlled with good fungicide program | D21: 15
A22: Pest_History\Smut | B22: 3 | C22: No history | D22: 8
A23: Treatments\Iridium_Applictions | B23: 1 | C23: None | D23: 0
A24: Treatments\Iridium_Applictions | B24: 2 | C24: 1 Spray | D24: -25
A25: Treatments\Iridium_Applictions | B25: 3 | C25: 2 Sprays | D25: -50
A26: Weather_Pattern\Period_2_Nov_and_Dec | B26: 1 | C26: Wet | D26: 15
A27: Weather_Pattern\Period_2_Nov_and_Dec | B27: 2 | C27: Moist | D27: 5
A28: Weather_Pattern\Period_2_Nov_and_Dec | B28: 3 | C28: Dry | D28: 0
A29: Weather_Pattern\Period_3_Jan_and_Feb | B29: 1 | C29: Wet | D29: 25
A30: Weather_Pattern\Period_3_Jan_and_Feb | B30: 2 | C30: Moist | D30: 15
A31: Weather_Pattern\Period_3_Jan_and_Feb | B31: 3 | C31: Dry | D31: 5
A32: Weather_Pattern\Period_4_Mar_and_Apr | B32: 1 | C32: Wet | D32: 30
A33: Weather_Pattern\Period_4_Mar_and_Apr | B33: 2 | C33: Moist | D33: 15
A34: Weather_Pattern\Period_4_Mar_and_Apr | B34: 3 | C34: Dry | D34: 5
